Cogmind - Beta 11.1 @@@ ROGUE MODE // 2022.05.24 @ 23:01:01 Player: ktur Result: Self-destructed Performance ------------- Evolutions (6) 3000 Regions Visited (21) 4200 Robots Destroyed (280) 1400 Value Destroyed (11169) 11169 Prototype IDs (71) 1420 Alien Tech Used (0) 0 Bonus (3251) 3251 TOTAL SCORE: 24440 Bonus ------- High Alert Combat Kills 95 Follower Combat Kills 1292 Aligned with FarCom 300 Met Data Miner 300 Met Imprinter 300 Met Warlord at Base 500 MAIN.C Attacked Warlord 500 Warlord Defense Kills 240 Friendly Fire -276 Cogmind --------- Core Integrity 1140/1150 Matter 223/300 Energy 540/540 System Corruption 0% Temperature Cool (0) Movement Treading (160) Location -4/Factory Parts ------- > --- POWER (2) -------- Neutrino Core Antimatter Reactor > --- PROPULSION (4) --- Heavy Treads Improved Heavy Treads > --- UTILITY (11) ----- Huge Storage Unit Experimental Core Analyzer Experimental Utility Shielding Experimental Thermal Shield Improved Force Field Hacking Suite Advanced Hacking Suite Advanced Hacking Suite Advanced Hacking Suite System Shield Makeshift System Shield > --- WEAPON (2) ------- Tri-rail Accelerator > --- INVENTORY (25) --- Vortex Chain Reactor Matter Compressor (250) Advanced Transmission Jammer Experimental Phase Shifter Medium Reactive Plating Graphene Brace Authchip [Device] Army-in-a-Box (30/30) Vortex Rifle (35) Vortex Rifle (34) Vortex Shotgun (50) Vortex Shotgun (50) Vortex Cannon (26) Vortex Cannon (26) Hypervelocity Coil Gun Hypervelocity Coil Gun Heavy Rocket Launcher RU-N14's Throwing Claymores (10) RU-N14's Throwing Claymores (8) Peak State ------------ > --- POWER ------------ Neutrino Core Antimatter Reactor > --- PROPULSION ------- Heavy Treads Improved Heavy Treads > --- UTILITY ---------- Huge Storage Unit Experimental Core Analyzer Experimental Utility Shielding Experimental Thermal Shield Improved Force Field Hacking Suite Advanced Hacking Suite Advanced Hacking Suite Advanced Hacking Suite System Shield Makeshift System Shield > --- WEAPON ----------- Tri-rail Accelerator > --- INVENTORY -------- Vortex Chain Reactor Matter Compressor Advanced Transmission Jammer Experimental Phase Shifter Medium Reactive Plating Graphene Brace Authchip [Device] Army-in-a-Box Vortex Rifle Vortex Rifle Vortex Shotgun Vortex Shotgun Vortex Cannon Vortex Cannon Hypervelocity Coil Gun Hypervelocity Coil Gun Heavy Rocket Launcher RU-N14's Throwing Claymores RU-N14's Throwing Claymores [Rating: 133] Favorites ----------- Power Cold Fusion Reactor Engine Improved Deuterium Engine Power Core Neutrino Core Reactor Cold Fusion Reactor Propulsion Heavy Treads Treads Heavy Treads Leg Flexi-carbon Leg Flight Unit Improved VTOL Module Utility Hacking Suite Device Combat Drone Bay Storage Huge Storage Unit Processor Advanced Targeting Computer Hackware Hacking Suite Protection Experimental Utility Shielding Weapon Heavy Assault Cannon Energy Gun Improved Medium Laser Energy Cannon Cooled Plasma Cannon Ballistic Gun Hypervelocity Coil Gun Ballistic Cannon Heavy Assault Cannon Launcher Heavy Rocket Launcher Special Weapon RU-N14's Throwing Claymores Piercing Weapon CR-A16's Pointy Stick Build | -11 -10 -10 -10 -9 -8 -7 -7 -7 -7 -6 -6 -6 -6 -6 -5 -5 -5 -5 -5 -4 -4 ------- Run | Scr Mat Min Exi Min Mat Fac Low Low Dat Pro Fac Low Low Zio Pro Fac Upp Upp War Pro Fac Slots Evolved 12 | . . . . . 4 2 . . . . 2 . . . . 2 . . . . 2 Power 1 | . . . . . . . . . . . . . . . . . . . . . 1 Propulsion 2 | . . . . . 2 . . . . . . . . . . . . . . . . Utility 9 | . . . . . 2 2 . . . . 2 . . . . 2 . . . . 1 Weapon . | . . . . . . . . . . . . . . . . . . . . . . Parts Attached 336 | 6 24 9 1 . 52 23 7 7 1 21 28 1 2 11 8 84 6 10 24 3 8 Power 22 | 1 4 1 1 . 3 2 . 2 . 1 2 . . . . 3 . . 1 . 1 Engine 12 | 1 4 1 1 . 1 2 . 1 . 1 . . . . . . . . . . . Core 7 | . . . . . 2 . . 1 . . . . . . . 3 . . . . 1 Reactor 3 | . . . . . . . . . . . 2 . . . . . . . 1 . . Propulsion 55 | 2 4 1 . . 19 5 1 3 . 4 5 . . . . 8 . . 1 . 2 Treads 52 | 2 4 1 . . 18 5 1 3 . 4 3 . . . . 8 . . 1 . 2 Leg 2 | . . . . . . . . . . . 2 . . . . . . . . . . Wheel . | . . . . . . . . . . . . . . . . . . . . . . Hover . | . . . . . . . . . . . . . . . . . . . . . . Flight 1 | . . . . . 1 . . . . . . . . . . . . . . . . Utility 126 | 1 3 . . . 11 9 5 . . 10 14 1 2 4 6 35 2 7 11 3 2 Device 43 | . . . . . 3 1 1 . . 4 3 1 2 4 2 10 1 4 3 3 1 Storage 5 | 1 2 . . . 1 . . . . . 1 . . . . . . . . . . Processor 8 | . 1 . . . 2 . . . . . 1 . . . 1 . . . 3 . . Hackware 16 | . . . . . . 4 . . . . 2 . . . . 9 1 . . . . Protection 54 | . . . . . 5 4 4 . . 6 7 . . . 3 16 . 3 5 . 1 Artifact . | . . . . . . . . . . . . . . . . . . . . . . Weapon 133 | 2 13 7 . . 19 7 1 2 1 6 7 . . 7 2 38 4 3 11 . 3 Energy Gun 18 | 2 5 4 . . 4 . . . . . . . . . . . . . 3 . . Energy Cannon 24 | . . . . . . . . . . 3 5 . . 1 . 14 . . 1 . . Ballistic Gun 36 | . 6 1 . . 11 . . . . . . . . . . 12 1 2 1 . 2 Ballistic Cannon 37 | . . 2 . . 1 5 1 1 1 1 2 . . 3 1 9 2 1 6 . 1 Launcher 14 | . 2 . . . 3 2 . 1 . 2 . . . 1 1 1 1 . . . . Special Weapon 3 | . . . . . . . . . . . . . . 1 . 2 . . . . . Impact Weapon . | . . . . . . . . . . . . . . . . . . . . . . Slashing Weapon . | . . . . . . . . . . . . . . . . . . . . . . Piercing Weapon 1 | . . . . . . . . . . . . . . 1 . . . . . . . Special Melee Weapon . | . . . . . . . . . . . . . . . . . . . . . . Unidentified Prototypes 20 | . 1 . . . 2 . . 1 . 2 3 . . 2 . . . . 9 . . Parts Lost 23 | . . 2 . . 11 1 . . . 3 3 . . . 1 2 . . . . . Power 3 | . . . . . 1 . . . . . 1 . . . . 1 . . . . . Propulsion 13 | . . 1 . . 7 . . . . 3 2 . . . . . . . . . . Utility 3 | . . . . . 1 . . . . . . . . . 1 1 . . . . . Weapon 4 | . . 1 . . 2 1 . . . . . . . . . . . . . . . Highest Loss Streak 4 | . . 1 . . 4 1 . . . 2 1 . . . 1 1 . . . . . To Critical Strikes . | . . . . . . . . . . . . . . . . . . . . . . Average Slot Usage (%) 86 | . 97 99 100 100 97 92 91 91 84 95 87 73 73 72 76 83 77 79 81 82 82 Engine 3 | . 13 14 14 14 3 4 7 7 7 7 3 . . . . . . . . . . Core 1 | . . . . . 5 2 . . . . . . . . . 3 5 5 3 . 4 Reactor 1 | . . . . . . . . . . . 2 6 6 6 6 1 . . 1 5 5 Treads 19 | . 27 27 28 28 34 30 30 30 30 28 15 13 13 13 13 10 11 11 11 11 9 Device 3 | . . . . . 7 . . . . . 2 6 6 5 6 8 5 5 . 2 9 Storage 7 | . 14 14 14 14 9 7 7 7 7 7 6 6 6 6 6 5 5 5 5 5 5 Processor 5 | . 12 14 14 14 9 7 7 7 7 7 6 6 6 6 1 . . . 5 5 5 Hackware 22 | . . . . . . 23 23 23 23 23 25 26 26 26 26 35 35 35 35 35 31 Protection 5 | . . . . . 8 6 7 7 7 6 5 . . . 8 7 5 8 10 8 4 Energy Gun 2 | . 20 20 28 28 5 . . . . . . . . . . . . . . . . Energy Cannon 1 | . . . . . . . . . . 5 11 . . . . 2 1 . . . . Ballistic Gun 2 | . 6 5 . . 12 . . . . . . . . . . 2 . . . . 1 Ballistic Cannon 3 | . . 1 . . . 6 6 6 . 1 . 6 6 5 5 1 4 4 4 5 4 Naked Turns . | . . . . . . . . . . . . . . . . . . . . . . Heaviest Build 140 | 14 53 53 53 53 104 112 112 112 112 122 133 116 116 116 133 134 132 132 138 132 140 Greatest Support 145 | 40 40 40 40 40 82 82 82 96 96 88 140 140 140 140 140 140 140 140 140 140 145 Greatest Overweight (x) 2 | . 2 1 1 1 1 1 1 1 1 1 2 . . . . 1 . . . . . Average Overweight (x) . | . . 1 1 1 . 1 1 1 1 1 . . . . . . . . . . . Largest Inventory Capacity 25 | 8 20 20 20 20 25 25 25 25 25 25 25 25 25 25 25 25 25 25 25 25 25 Average Capacity 23 | 7 13 20 20 20 21 25 25 25 25 25 25 25 25 25 25 25 25 25 25 25 25 Most Carried 25 | 7 17 20 20 20 25 25 25 25 25 25 25 25 25 25 25 25 25 25 25 25 25 Average Carried 23 | 3 12 18 18 20 20 24 25 24 24 24 24 24 25 24 24 24 24 24 24 25 24 Final Capacity 25 | 8 20 20 20 20 25 25 25 25 25 25 25 25 25 25 25 25 25 25 25 25 25 Final Carried 25 | 6 17 18 20 20 25 25 25 25 25 25 25 25 25 25 24 25 25 25 25 25 25 Class Distribution -------------------- 50% | Hacker-Mutant 29% | Wizard-Mutant 17% | Mutant 3% | Scavenger-Mutant Dominant Class ---------------- Mutant | -10/Materials Mutant | -10/Mines Mutant | -10/Exiles Mutant | -9/Mines Mutant | -8/Materials Hacker-Mutant | -7/Factory Hacker-Mutant | -7/Lower Caves Hacker-Mutant | -7/Lower Caves Hacker-Mutant | -7/Data Miner Hacker-Mutant | -6/Proximity Caves Hacker-Mutant | -6/Factory Hacker-Mutant | -6/Lower Caves Hacker-Mutant | -6/Lower Caves Hacker-Mutant | -6/Zion Hacker-Mutant | -5/Proximity Caves Wizard-Mutant | -5/Factory Wizard-Mutant | -5/Upper Caves Wizard-Mutant | -5/Upper Caves Wizard-Mutant | -5/Warlord Wizard-Mutant | -4/Proximity Caves Wizard-Mutant | -4/Factory Resources | -11 -10 -10 -10 -9 -8 -7 -7 -7 -7 -6 -6 -6 -6 -6 -5 -5 -5 -5 -5 -4 -4 ----------- Run | Scr Mat Min Exi Min Mat Fac Low Low Dat Pro Fac Low Low Zio Pro Fac Upp Upp War Pro Fac Matter Collected 9892 | 206 369 354 . . 1514 708 622 200 . 461 271 310 494 110 336 1983 854 511 342 126 121 Remotely 261 | . . . . . . 216 45 . . . . . . . . . . . . . . Salvage Created 10926 | . 453 716 . . 2383 659 368 115 . 365 1331 335 171 . 332 2532 460 401 27 158 120 Parts 529 | . 43 31 . . 124 42 16 3 . 15 71 9 8 . 12 111 18 14 . 2 10 Haulers Intercepted 9 | . 1 . . . 5 . . . . . 1 . . . . 2 . . . . . Recyclers Shooed 12 | . . . . . 3 3 . . . . . . . . . 6 . . . . . Parts Field Recycled . | . . . . . . . . . . . . . . . . . . . . . . Retrieved Matter . | . . . . . . . . . . . . . . . . . . . . . . Parts Self-Destructed 193 | . . . . . . . 11 2 . 25 . 34 28 1 29 . 42 19 . 2 . Prevented 4 | . . . . . . . . 1 . . . . 3 . . . . . . . . Kills | -11 -10 -10 -10 -9 -8 -7 -7 -7 -7 -6 -6 -6 -6 -6 -5 -5 -5 -5 -5 -4 -4 ------- Run | Scr Mat Min Exi Min Mat Fac Low Low Dat Pro Fac Low Low Zio Pro Fac Upp Upp War Pro Fac Combat Hostiles Destroyed 222 | . 13 18 . . 37 19 4 5 . 9 21 7 4 . 12 40 16 10 1 4 2 Guns 63 | . 7 17 . . 32 . . . . . . . . . . 6 . . . . 1 Cannons 120 | . . 1 . . . 12 4 2 . 6 17 7 4 . 8 30 13 10 1 4 1 AOE 33 | . 6 . . . 5 7 . 3 . 3 . . . . 4 2 3 . . . . Classes Destroyed 21 | . 8 1 . . 6 1 1 . . . 2 . . . 1 . . . 1 . . Worker 12 | . 1 1 . . 4 1 . . . . . . . . . 5 . . . . . Builder 10 | . 2 . . . 1 2 . . . . 1 . . . . 4 . . . . . Tunneler 5 | . 1 3 . . 1 . . . . . . . . . . . . . . . . Hauler 9 | . 1 . . . 5 . . . . . 1 . . . . 2 . . . . . Recycler 11 | . . . . . 7 2 . . . . . . . . . 2 . . . . . Mechanic 1 | . . . . . . . . . . . 1 . . . . . . . . . . Operator 5 | . 3 . . . 1 1 . . . . . . . . . . . . . . . Watcher 7 | . 2 . . . . . . . . . 3 . . . . 2 . . . . . Swarmer 43 | . 6 . . . 8 3 3 3 . . 2 1 1 . 5 4 7 . . . . Grunt 104 | . 7 16 . . 18 9 . 1 . 5 10 3 . . 2 18 7 6 . 2 . Brawler 6 | . . . . . . . . . . . 1 1 1 . 2 1 . . . . . Duelist 4 | . . . . . 1 . . . . 1 . . . . . . 1 . . 1 . Sentry 21 | . . . . . 6 4 . 1 . . 2 1 1 . . 3 1 1 . 1 . Demolisher 1 | . . . . . . . . . . . . . . . 1 . . . . . . Specialist 2 | . . . . . 2 . . . . . . . . . . . . . . . . Hunter 13 | . . . . . 1 . . . . 2 . 1 . . 2 5 . 2 . . . Programmer 21 | . . . . . . 3 . . . 1 6 . . . . 9 . . . . 2 Heavy 1 | . . . . . 1 . . . . . . . . . . . . . . . . Behemoth 3 | . . . . . . . 1 . . . . . 1 . . . . 1 . . . Executioner 1 | . . . . . . . . . . . . . . . . . . . 1 . . Assembled 2 | . . 2 . . . . . . . . . . . . . . . . . . . Best Kill Streak 10 | . 8 6 . . 7 5 3 3 . 5 4 2 2 . 6 7 10 4 1 3 2 Combat Bots Only 10 | . 4 5 . . 5 4 3 3 . 5 4 2 2 . 6 6 10 4 1 3 2 Max Kills in Single Turn 4 | . 4 2 . . 2 3 1 2 . 1 1 1 1 . 3 2 2 1 1 1 1 Gunslinging 1 | . . . . . 1 . . . . . . . . . . . . . . . . Exploded 3 | . 3 . . . 2 2 . 2 . 1 . . . . 3 2 2 . . . . Melee . | . . . . . . . . . . . . . . . . . . . . . . Uniques/NPCs Destroyed . | . . . . . . . . . . . . . . . . . . . . . . Combat | -11 -10 -10 -10 -9 -8 -7 -7 -7 -7 -6 -6 -6 -6 -6 -5 -5 -5 -5 -5 -4 -4 -------- Run | Scr Mat Min Exi Min Mat Fac Low Low Dat Pro Fac Low Low Zio Pro Fac Upp Upp War Pro Fac Damage Taken 13588 | . 349 625 . . 3064 1178 689 206 . 797 1026 415 271 . 662 3177 93 457 110 372 97 Core 1229 | . 61 124 . . 299 103 72 30 . 54 49 10 31 . 52 294 26 14 . . 10 Absorbed by Shields 106 | . . . . . . . . . . . . . . . . . . . . . 106 Reduced by Siege Mode 582 | . . . . . . . . . . . . 26 13 . 47 380 5 64 . 47 . Redirected to Shielding 163 | . . . . . . . . . . . . . . . . 79 14 61 . . 9 Regen/Repaired (Parts) 3677 | . 110 . . . . 267 . . . . 248 . . . . 2610 . . . . 442 Core Remaining (%) 63 | 100 . . . 26 45 . . . . 63 . . . . 83 . . . . 66 . Volleys Fired 915 | . 49 81 . . 157 72 40 9 . 27 95 33 28 1 31 188 31 46 2 12 13 Largest 2 | . 2 2 . . 2 1 1 1 . 1 2 1 1 1 1 2 1 2 1 1 2 Hottest 131 | . 112 112 . . 131 60 60 60 . 90 120 60 60 35 60 105 60 70 60 60 70 Shots Fired 1239 | . 76 118 . . 284 71 40 11 . 27 142 33 28 1 31 253 34 55 3 12 20 Gun 526 | . 69 75 . . 277 . . . . . . . . . . 74 . 16 1 . 14 Cannon 674 | . . 43 . . 2 59 40 9 . 24 142 33 28 1 28 175 31 39 2 12 6 Launcher 35 | . 7 . . . 5 12 . 2 . 3 . . . . 3 . 3 . . . . Special 4 | . . . . . . . . . . . . . . . . 4 . . . . . Kinetic 749 | . 34 73 . . 166 59 40 9 . 17 2 33 28 . 28 140 31 55 2 12 20 Thermal 448 | . 35 45 . . 113 . . . . 5 140 . . 1 . 109 . . . . . Explosive 37 | . 7 . . . 5 12 . 2 . 3 . . . . 3 2 3 . . . . Electromagnetic 2 | . . . . . . . . . . 2 . . . . . . . . . . . Entropic 1 | . . . . . . . . . . . . . . . . . . . 1 . . Robot Hit Streak 26 | . 23 9 . . 17 13 15 7 . 4 10 15 11 . 18 19 13 26 13 20 10 Robot Miss Streak 7 | . 3 2 . . 7 2 2 3 . 1 3 2 2 . 1 2 2 3 . 1 2 Penetration Max 1 | . . . . . . . 1 . . . . . . . . 1 . . . . 1 Secondary Targets 10 | . 1 . . . 9 . . . . . . . . . . . . . . . . Max Gunslinging Chain 1 | . 1 . . . 1 . . . . . . . . . . . . . . . . Shots Hit Robots 781 | . 52 54 . . 201 43 32 4 . 17 73 18 19 . 26 164 26 29 1 12 10 Core Hits 434 | . 31 26 . . 95 35 15 4 . 12 34 6 6 . 13 91 23 27 1 11 4 Critical Kills 14 | . . . . . 1 . . . . . 3 . . . . 9 . . . . 1 Critical Parts Destroyed 13 | . . . . . . . . . . . . . . . . 13 . . . . . Critical Strikes 83 | . 4 2 . . 11 3 7 1 . 4 3 3 2 . 6 27 3 5 . 1 1 Burn 16 | . 4 2 . . 10 . . . . . . . . . . . . . . . . Meltdown 5 | . . . . . . . . . . . 3 . . . . 2 . . . . . Destroy 24 | . . . . . 1 . . . . . . . . . . 20 . 2 . . 1 Blast 37 | . . . . . . 3 7 1 . 4 . 3 2 . 6 4 3 3 . 1 . Sever 1 | . . . . . . . . . . . . . . . . 1 . . . . . Melee Attacks . | . . . . . . . . . . . . . . . . . . . . . . Impact . | . . . . . . . . . . . . . . . . . . . . . . Slashing . | . . . . . . . . . . . . . . . . . . . . . . Piercing . | . . . . . . . . . . . . . . . . . . . . . . Sneak Attacks . | . . . . . . . . . . . . . . . . . . . . . . Combat Hostiles . | . . . . . . . . . . . . . . . . . . . . . . Follow-up Attacks . | . . . . . . . . . . . . . . . . . . . . . . Damage Inflicted 29575 | . 1174 1038 . . 3951 3456 1823 385 . 1101 2566 898 881 . 1777 6152 1564 1881 59 756 113 Guns 5638 | . 590 912 . . 3495 . . . . . . . . . . 509 . 44 . . 88 Cannons 19069 | . . 39 . . 50 2090 1823 208 . 819 2443 898 881 . 1292 4538 1311 1837 59 756 25 Explosions 4237 | . 576 70 . . 346 1338 . 177 . 282 . . . . 485 710 253 . . . . Melee . | . . . . . . . . . . . . . . . . . . . . . . Ramming 562 | . 8 17 . . 60 28 . . . . 123 . . . . 326 . . . . . Kinetic 17258 | . 153 315 . . 2061 2090 1823 208 . 603 . 898 881 . 1292 2814 1311 1881 59 756 113 Thermal 7789 | . 437 706 . . 1484 333 . . . 153 2443 . . . . 2233 . . . . . Explosive 3834 | . 576 . . . 346 1005 . 177 . 282 . . . . 485 710 253 . . . . Electromagnetic 63 | . . . . . . . . . . 63 . . . . . . . . . . . Impact . | . . . . . . . . . . . . . . . . . . . . . . Slashing 69 | . . . . . . . . . . . . . . . . 69 . . . . . Piercing . | . . . . . . . . . . . . . . . . . . . . . . Highest Corruption 17 | . . . . . 2 3 3 3 3 3 1 . . . . 17 17 17 17 . . Average Corruption 6 | . . . . . 1 2 3 3 3 2 1 . . . . 9 17 17 17 . . Corruption Purged 3 | . . . . . . . . . . 2 1 . . . . . . . . . . Corruption Blocked . | . . . . . . . . . . . . . . . . . . . . . . Effects 352 | . . . . . 40 21 28 17 4 14 5 . . . . 122 55 44 2 . . Message Errors 80 | . . . . . 4 5 7 3 1 2 1 . . . . 28 16 13 . . . Matter Fused 90 | . . . . . 11 5 5 7 1 5 1 . . . . 32 10 13 . . . Heat Flow Errors 34 | . . . . . 4 . 6 . 1 2 . . . . . 12 7 1 1 . . Energy Discharges 33 | . . . . . 6 2 3 . . . 2 . . . . 12 4 4 . . . Parts Rejected 10 | . . . . . 3 1 1 . . 1 . . . . . 4 . . . . . Data Loss (minor) 50 | . . . . . 4 5 5 2 1 2 1 . . . . 13 10 7 . . . Data Loss (major) 18 | . . . . . 1 2 1 3 . 2 . . . . . 5 2 2 . . . Misfires 18 | . . . . . 4 . . 2 . . . . . . . 5 4 2 1 . . Alerts 10 | . . . . . 2 . . . . . . . . . . 6 1 1 . . . Weapon Failures 9 | . . . . . 1 1 . . . . . . . . . 5 1 1 . . . Overload Shots 9 | . . . . . . . . . . . 2 . . . . 7 . . . . . Effects 1 | . . . . . . . . . . . . . . . . 1 . . . . . Heat Surge 1 | . . . . . . . . . . . . . . . . 1 . . . . . Overflow Damage 1287 | . 56 5 . . 26 222 335 56 . 38 75 35 16 . 94 286 27 15 . 1 . Projectiles 946 | . . . . . . 117 335 56 . 38 66 35 16 . 50 190 27 15 . 1 . Explosions 303 | . 56 5 . . 23 105 . . . . . . . . 44 70 . . . . . Melee 38 | . . . . . 3 . . . . . 9 . . . . 26 . . . . . Knockbacks 69 | . . . . . 1 11 3 . . 3 1 5 2 . 10 14 9 5 1 4 . Impact 3 | . . . . . . . . . . . 1 . . . . 2 . . . . . Kinetic 60 | . . . . . 1 10 3 . . 3 . 4 2 . 10 11 7 4 1 4 . Secondary 6 | . . . . . . 1 . . . . . 1 . . . 1 2 1 . . . Self-Inflicted Damage 374 | . . 114 . . 37 13 . . . 51 . . . . 48 111 . . . . . Shots 9 | . . 2 . . 2 1 . . . 2 . . . . 1 1 . . . . . Rammed 43 | . 5 3 . . 3 5 . . . . 8 . . . . 19 . . . . . Targets Rammed 50 | . 5 5 . . 6 5 . . . . 8 . . . . 21 . . . . . Kicked . | . . . . . . . . . . . . . . . . . . . . . . Crushed 7 | . . 2 . . 3 . . . . . . . . . . 2 . . . . . Highest Temperature 425 | . 253 410 . . 425 110 258 56 167 194 153 11 2 . 5 272 219 101 199 121 24 Average Temperature 72 | . 67 107 . . 99 34 62 26 84 60 66 4 2 . 2 73 69 36 70 56 10 Received Heat Transfer 3647 | . 114 347 . . 1206 177 45 60 . 180 366 66 15 . 66 711 9 117 . 168 . Effects 4 | . 1 . . . 2 . . . . . . . . . . 1 . . . . . Energy Bleed 1 | . 1 . . . . . . . . . . . . . . . . . . . . Interference 1 | . . . . . . . . . . . . . . . . 1 . . . . . Short Circuit 1 | . . . . . 1 . . . . . . . . . . . . . . . . Damage (minor) 1 | . . . . . 1 . . . . . . . . . . . . . . . . Siege Activations 37 | . . . . . . . . . . . 1 3 3 . 3 17 2 6 . 2 . Total Turns 931 | . . . . . . . . . . . 4 47 114 . 62 425 112 134 . 33 . Longest Duration 101 | . . . . . . . . . . . 4 28 43 . 36 47 101 39 . 18 . Robots Corrupted . | . . . . . . . . . . . . . . . . . . . . . . Combat Hostiles . | . . . . . . . . . . . . . . . . . . . . . . Parts Fried 3 | . . . . . . . . . . . . . . . . 3 . . . . . Impact Corruptions 10 | . . . . . 1 . 4 . . . 1 . . . . 4 . . . . . Robots Melted 7 | . . . . . . . . . . . 5 . . . . 2 . . . . . Combat Hostiles 6 | . . . . . . . . . . . 4 . . . . 2 . . . . . Parts Melted 43 | . 2 2 . . 10 . . . . . 17 . . . . 12 . . . . . Heat Transferred 13594 | . 1369 1630 . . 3880 200 . . . . 3385 . . . . 3130 . . . . . Parts Sabotaged . | . . . . . . . . . . . . . . . . . . . . . . Parts Stolen . | . . . . . . . . . . . . . . . . . . . . . . Parts Stripped . | . . . . . . . . . . . . . . . . . . . . . . Power Chain Reactions . | . . . . . . . . . . . . . . . . . . . . . . Missiles Intercepted . | . . . . . . . . . . . . . . . . . . . . . . Alert | -11 -10 -10 -10 -9 -8 -7 -7 -7 -7 -6 -6 -6 -6 -6 -5 -5 -5 -5 -5 -4 -4 ------- Run | Scr Mat Min Exi Min Mat Fac Low Low Dat Pro Fac Low Low Zio Pro Fac Upp Upp War Pro Fac Peak Influence 528 | . 257 280 . . 494 393 . . . . 298 . . . . 528 . . . . 57 Initial 205 | . . 52 . . . 205 . . . . . . . . . 97 . . . . 25 Average 167 | . 175 97 . . 253 152 . . . . 127 . . . . 183 . . . . 33 Maximum Alert Level 2 | . 1 1 . . 2 1 . . . . 1 . . . . 2 . . . . . Low Security (%) 63 | 100 52 83 . 100 48 54 . . . . 71 . . . . 65 . . . . 100 Level 1 25 | . 47 16 . . 21 45 . . . . 28 . . . . 14 . . . . . Level 2 11 | . . . . . 29 . . . . . . . . . . 19 . . . . . Level 3 . | . . . . . . . . . . . . . . . . . . . . . . Level 4 . | . . . . . . . . . . . . . . . . . . . . . . Level 5 . | . . . . . . . . . . . . . . . . . . . . . . High Security . | . . . . . . . . . . . . . . . . . . . . . . Max Security . | . . . . . . . . . . . . . . . . . . . . . . Squads Dispatched 45 | . 4 . . . 7 8 . . . . 14 . . . 1 10 . . . . 1 Investigation 18 | . 1 . . . 4 3 . . . . 7 . . . . 3 . . . . . Extermination 15 | . . . . . . 4 . . . . 5 . . . . 5 . . . . 1 Reinforcement 10 | . 3 . . . 3 1 . . . . 1 . . . . 2 . . . . . Assault 2 | . . . . . . . . . . . 1 . . . 1 . . . . . . Garrison . | . . . . . . . . . . . . . . . . . . . . . . Intercept . | . . . . . . . . . . . . . . . . . . . . . . Searches Triggered . | . . . . . . . . . . . . . . . . . . . . . . Data Miner Redirects 4 | . . . . . . . . . . . 4 . . . . . . . . . . Construction Impeded 1 | . . . . . . 1 . . . . . . . . . . . . . . . Haulers Reinforced . | . . . . . . . . . . . . . . . . . . . . . . Active Scanning Responses . | . . . . . . . . . . . . . . . . . . . . . . Cargo Convoy Interrupts . | . . . . . . . . . . . . . . . . . . . . . . Stealth | -11 -10 -10 -10 -9 -8 -7 -7 -7 -7 -6 -6 -6 -6 -6 -5 -5 -5 -5 -5 -4 -4 --------- Run | Scr Mat Min Exi Min Mat Fac Low Low Dat Pro Fac Low Low Zio Pro Fac Upp Upp War Pro Fac Distress Signals 14 | . 1 1 . . 7 2 . . . . 2 . . . . 1 . . . . . Communications Jammed 13 | . . . . . . . . . . . . . . . . 13 . . . . . Distress Signals 13 | . . . . . . . . . . . . . . . . 13 . . . . . Times Spotted 341 | . 25 21 . . 64 24 7 4 . 20 32 16 13 . 22 51 23 11 3 4 1 Peak Tracking Total 12 | . 6 4 . . 6 4 3 3 . 6 4 12 6 . 8 4 11 4 10 3 1 Tactical Retreats 19 | . . 1 . . . 1 . . . 5 1 4 5 . . 2 . . . . . Traps | -11 -10 -10 -10 -9 -8 -7 -7 -7 -7 -6 -6 -6 -6 -6 -5 -5 -5 -5 -5 -4 -4 ------- Run | Scr Mat Min Exi Min Mat Fac Low Low Dat Pro Fac Low Low Zio Pro Fac Upp Upp War Pro Fac Traps Triggered 16 | . 5 . . . 5 1 . . . . 1 . . . . 3 . . 1 . . Indirectly . | . . . . . . . . . . . . . . . . . . . . . . Trap Hack Attempts . | . . . . . . . . . . . . . . . . . . . . . . Triggered . | . . . . . . . . . . . . . . . . . . . . . . Disarmed 8 | . . . . . . . . . . . . . . . . 8 . . . . . Reprogrammed . | . . . . . . . . . . . . . . . . . . . . . . Reused . | . . . . . . . . . . . . . . . . . . . . . . Traps Extracted . | . . . . . . . . . . . . . . . . . . . . . . Installed . | . . . . . . . . . . . . . . . . . . . . . . Triggered 16 | . . . . . . . . 2 . 1 . . 1 . . . . . 12 . . Machines | -11 -10 -10 -10 -9 -8 -7 -7 -7 -7 -6 -6 -6 -6 -6 -5 -5 -5 -5 -5 -4 -4 ---------- Run | Scr Mat Min Exi Min Mat Fac Low Low Dat Pro Fac Low Low Zio Pro Fac Upp Upp War Pro Fac Machines Disabled 37 | . 1 2 . . 3 15 . . . . 4 1 . . . 9 1 . 1 . . Max in Single Turn 4 | . 1 2 . . 1 4 . . . . 1 . . . . 2 . . 1 . . Garrison Access 6 | . . . . . 1 . . . . . 3 . . . . 2 . . . . . Machines Sabotaged . | . . . . . . . . . . . . . . . . . . . . . . Garrisons Compromised . | . . . . . . . . . . . . . . . . . . . . . . Overloaded Fab Kills . | . . . . . . . . . . . . . . . . . . . . . . Hacking | -11 -10 -10 -10 -9 -8 -7 -7 -7 -7 -6 -6 -6 -6 -6 -5 -5 -5 -5 -5 -4 -4 --------- Run | Scr Mat Min Exi Min Mat Fac Low Low Dat Pro Fac Low Low Zio Pro Fac Upp Upp War Pro Fac Machines Accessed 83 | . 7 1 2 . 13 10 . . 4 1 19 . . . . 18 1 . 4 . 3 Terminals 39 | . 4 1 . . 8 6 . . . 1 9 . . . . 8 1 . . . 1 Fabricators 11 | . . . . . . 3 . . . . 5 . . . . 3 . . . . . Repair Stations 9 | . 1 . . . 1 1 . . . . 1 . . . . 4 . . . . 1 Recycling Units 4 | . 2 . . . 1 . . . . . . . . . . 1 . . . . . Scanalyzers 5 | . . . . . 2 . . . . . 2 . . . . . . . . . 1 Garrison Access 5 | . . . . . 1 . . . . . 2 . . . . 2 . . . . . Total Hacks 352 | . 20 4 2 . 33 40 . . 32 1 70 . . . . 120 6 . 9 . 15 Successful 275 | . 12 2 2 . 15 28 . . 32 1 59 . . . . 95 6 . 9 . 14 Failed 73 | . 8 1 . . 18 11 . . . . 10 . . . . 24 . . . . 1 Catastrophic 4 | . . . . . 2 . . . . . 1 . . . . 1 . . . . . Database Lockouts 4 | . . 1 . . . 1 . . . . 1 . . . . 1 . . . . . Manual 120 | . 9 4 1 . 9 24 . . . . 26 . . . . 42 . . . . 5 Terminals 163 | . 13 4 . . 19 28 . . . 1 27 . . . . 59 6 . . . 6 Fabricators 46 | . . . . . . 10 . . . . 17 . . . . 19 . . . . . Repair Stations 54 | . 5 . . . 2 2 . . . . 3 . . . . 37 . . . . 5 Recycling Units 7 | . 2 . . . 2 . . . . . . . . . . 3 . . . . . Scanalyzers 31 | . . . . . 7 . . . . . 20 . . . . . . . . . 4 Garrison Access 8 | . . . . . 3 . . . . . 3 . . . . 2 . . . . . Terminal Hacks 124 | . 6 2 2 . 4 14 . . 32 1 15 . . . . 30 6 . 9 . 3 Record 26 | . . . 1 . . . . . 10 1 . . . . . . 6 . 8 . . Part Schematic 22 | . . . . . . 2 . . 12 . 3 . . . . 4 . . . . 1 Robot Schematic 7 | . . . . . . . . . 7 . . . . . . . . . . . . Robot Analysis 2 | . 1 1 . . . . . . . . . . . . . . . . . . . Prototype ID Bank 10 | . 1 . . . 1 1 . . 3 . . . . . . 3 . . . . 1 Open Door 1 | . . . . . . . . . . . . . . . . . . . 1 . . Branch Access Points 3 | . . . . . . 1 . . . . 1 . . . . 1 . . . . . Machine Index 2 | . . . . . . . . . . . . . . . . 2 . . . . . Terminal Index 4 | . . . . . . 1 . . . . 2 . . . . 1 . . . . . Fabricator Index 1 | . . . . . . 1 . . . . . . . . . . . . . . . Repair Station Index 1 | . . . . . . 1 . . . . . . . . . . . . . . . Alert Level 14 | . 1 1 . . 1 2 . . . . 3 . . . . 5 . . . . 1 Unreport Threat 11 | . . . . . 1 3 . . . . 2 . . . . 5 . . . . . Locate Traps 8 | . 2 . . . . 2 . . . . 2 . . . . 2 . . . . . Disarm Traps 2 | . . . . . . . . . . . . . . . . 2 . . . . . Recall Extermination 2 | . . . . . . . . . . . . . . . . 2 . . . . . Hauler Manifests 6 | . 1 . . . 1 . . . . . 2 . . . . 2 . . . . . Registered Prototypes 1 | . . . . . . . . . . . . . . . . 1 . . . . . EX-Prototype ID Bank 1 | . . . 1 . . . . . . . . . . . . . . . . . . Fabricator Hacks 29 | . . . . . . 5 . . . . 10 . . . . 14 . . . . . Network Status 2 | . . . . . . . . . . . 1 . . . . 1 . . . . . Load Schematic 17 | . . . . . . 4 . . . . 6 . . . . 7 . . . . . Build 10 | . . . . . . 1 . . . . 3 . . . . 6 . . . . . Repair Station Hacks 48 | . 2 . . . 1 2 . . . . 3 . . . . 35 . . . . 5 Scan Component 26 | . 1 . . . 1 1 . . . . 2 . . . . 18 . . . . 3 Repair 22 | . 1 . . . . 1 . . . . 1 . . . . 17 . . . . 2 Recycling Unit Hacks 4 | . 2 . . . 1 . . . . . . . . . . 1 . . . . . Retrieve Components 4 | . 2 . . . 1 . . . . . . . . . . 1 . . . . . Scanalyzer 31 | . . . . . 7 . . . . . 20 . . . . . . . . . 4 Insert Component 12 | . . . . . 4 . . . . . 7 . . . . . . . . . 1 Analyze 19 | . . . . . 3 . . . . . 13 . . . . . . . . . 3 Garrison Access Hacks 5 | . . . . . 1 . . . . . 2 . . . . 2 . . . . . Seal Access 5 | . . . . . 1 . . . . . 2 . . . . 2 . . . . . Unauthorized Hacks 34 | . 2 . . . 1 7 . . . . 9 . . . . 13 . . . . 2 Terminals 19 | . 2 . . . 1 4 . . . . 3 . . . . 7 . . . . 2 Track 1 | . . . . . . . . . . . . . . . . 1 . . . . . Assimilate 3 | . . . . . . 1 . . . . 1 . . . . 1 . . . . . Botnet 10 | . 1 . . . 1 2 . . . . 2 . . . . 3 . . . . 1 Disrupt 1 | . . . . . . . . . . . . . . . . 1 . . . . . Operators 4 | . 1 . . . . 1 . . . . . . . . . 1 . . . . 1 Fabricators 13 | . . . . . . 3 . . . . 6 . . . . 4 . . . . . Report 1 | . . . . . . . . . . . . . . . . 1 . . . . . Prioritize 2 | . . . . . . . . . . . 1 . . . . 1 . . . . . Liberate 1 | . . . . . . . . . . . 1 . . . . . . . . . . Haulers 1 | . . . . . . . . . . . . . . . . 1 . . . . . Recompile 8 | . . . . . . 3 . . . . 4 . . . . 1 . . . . . Repair Stations . | . . . . . . . . . . . . . . . . . . . . . . Recycling Units 2 | . . . . . . . . . . . . . . . . 2 . . . . . Reject 1 | . . . . . . . . . . . . . . . . 1 . . . . . Mask 1 | . . . . . . . . . . . . . . . . 1 . . . . . Scanalyzers . | . . . . . . . . . . . . . . . . . . . . . . Garrison Access . | . . . . . . . . . . . . . . . . . . . . . . Data Cores Recovered . | . . . . . . . . . . . . . . . . . . . . . . Used . | . . . . . . . . . . . . . . . . . . . . . . Hacking Detections 54 | . 6 1 . . 12 7 . . . . 12 . . . . 14 . . . . 2 Full Trace Events 8 | . . . . . 3 . . . . . 3 . . . . 2 . . . . . Feedback Events 1 | . . . . . . . . . . . 1 . . . . . . . . . . Corruption 1 | . . . . . . . . . . . 1 . . . . . . . . . . Feedback Blocked . | . . . . . . . . . . . . . . . . . . . . . . Robot Schematics Acquired 10 | . . . . . . . . . 7 . . . . 3 . . . . . . . Robots Built . | . . . . . . . . . . . . . . . . . . . . . . Authchips . | . . . . . . . . . . . . . . . . . . . . . . Time . | . . . . . . . . . . . . . . . . . . . . . . Total Robot Build Rating . | . . . . . . . . . . . . . . . . . . . . . . Part Schematics Acquired 45 | . . . . . 3 2 . . 12 . 10 . . 13 . 4 . . . . 1 Parts Built 12 | . . . . . . 1 . . . . 4 . . . . 7 . . . . . Authchips 7 | . . . . . . 1 . . . . 1 . . . . 5 . . . . . Time 467 | . . . . . . 24 . . . . 195 . . . . 248 . . . . . Total Part Build Rating 69 | . . . . . . 3 . . . . 25 . . . . 41 . . . . . Parts Repaired 22 | . 1 . . . . 1 . . . . 1 . . . . 17 . . . . 2 Time 576 | . 13 . . . . 19 . . . . 19 . . . . 457 . . . . 68 Parts Recycled . | . . . . . . . . . . . . . . . . . . . . . . Recycled Matter . | . . . . . . . . . . . . . . . . . . . . . . Retrieved Matter . | . . . . . . . . . . . . . . . . . . . . . . Retrieved Components 29 | . 10 . . . 10 . . . . . . . . . . 9 . . . . . Parts Scanalyzed 11 | . . . . . 3 . . . . . 7 . . . . . . . . . 1 Part Schematics Acquired 10 | . . . . . 3 . . . . . 7 . . . . . . . . . . Parts Damaged . | . . . . . . . . . . . . . . . . . . . . . . Bothacking | -11 -10 -10 -10 -9 -8 -7 -7 -7 -7 -6 -6 -6 -6 -6 -5 -5 -5 -5 -5 -4 -4 ------------ Run | Scr Mat Min Exi Min Mat Fac Low Low Dat Pro Fac Low Low Zio Pro Fac Upp Upp War Pro Fac Used RIF Installer . | . . . . . . . . . . . . . . . . . . . . . . Robots Hacked . | . . . . . . . . . . . . . . . . . . . . . . Non-combat . | . . . . . . . . . . . . . . . . . . . . . . Combat . | . . . . . . . . . . . . . . . . . . . . . . Robot Hacks Applied . | . . . . . . . . . . . . . . . . . . . . . . Relay Couplers Released 2 | . . . . . . . . . . . 2 . . . . . . . . . . Machine Destruction 2 | . . . . . . . . . . . 2 . . . . . . . . . . Fabnet Peak Effective % . | . . . . . . . . . . . . . . . . . . . . . . Robots Rewired 6 | . . . . . . . . . . . . 2 2 . 2 . . . . . . Allies Hacked . | . . . . . . . . . . . . . . . . . . . . . . Hacks Repelled . | . . . . . . . . . . . . . . . . . . . . . . Allies | -11 -10 -10 -10 -9 -8 -7 -7 -7 -7 -6 -6 -6 -6 -6 -5 -5 -5 -5 -5 -4 -4 -------- Run | Scr Mat Min Exi Min Mat Fac Low Low Dat Pro Fac Low Low Zio Pro Fac Upp Upp War Pro Fac Total Allies 14 | . . . . . . 1 . . . 1 3 2 2 2 2 1 . . . . . Largest Group 4 | . . . . . . 1 . . . 1 3 3 3 3 4 1 . . . . . Highest-Rated Group 112 | . . . . . . 26 . . . 96 90 85 91 83 112 26 . . . . . Highest-Rated Ally 96 | . . . . . . 26 . . . 96 32 30 32 32 32 26 . . . . . Total Orders 96 | . . . . . . . . . . . . 39 30 . 6 . 13 8 . . . STAY 13 | . . . . . . . . . . . . 9 1 . . . 1 2 . . . ROAM 11 | . . . . . . . . . . . . 5 4 . . . 1 1 . . . FOLLOW 13 | . . . . . . . . . . . . 5 6 . 2 . . . . . . EXPLORE 17 | . . . . . . . . . . . . 4 9 . 1 . 2 1 . . . RETURN 42 | . . . . . . . . . . . . 16 10 . 3 . 9 4 . . . Ally Attacks 286 | . . . . . . . . . . 14 . 81 67 . 63 . 45 16 . . . Total Damage 5425 | . . . . . . . . . . 577 . 1249 1179 . 1528 . 599 293 . . . Kills 47 | . . . . . . . . . . 6 . 12 9 . 9 . 9 2 . . . Allies Corrupted 1 | . . . . . . . . . . . . . . . 1 . . . . . . Allies Melted 1 | . . . . . . . . . . . . . . . . . . . 1 . . Intel | -11 -10 -10 -10 -9 -8 -7 -7 -7 -7 -6 -6 -6 -6 -6 -5 -5 -5 -5 -5 -4 -4 ------- Run | Scr Mat Min Exi Min Mat Fac Low Low Dat Pro Fac Low Low Zio Pro Fac Upp Upp War Pro Fac Robot Analysis Total 2 | . 1 1 . . . . . . . . . . . . . . . . . . . Derelict Logs Recovered 19 | . . 1 . . . . 2 1 . 1 . 1 2 2 2 . 3 1 . 3 . Drone Launches 39 | . . . . . . . . . . . . 14 10 . 4 . 8 3 . . . Drone Recoveries 35 | . . . . . . . . . . . . 14 10 . 2 . 7 2 . . . Exploration | -11 -10 -10 -10 -9 -8 -7 -7 -7 -7 -6 -6 -6 -6 -6 -5 -5 -5 -5 -5 -4 -4 ------------- Run | Scr Mat Min Exi Min Mat Fac Low Low Dat Pro Fac Low Low Zio Pro Fac Upp Upp War Pro Fac Turns Passed 31119 | 72 1365 1194 592 75 3052 1868 1689 970 241 1299 3587 1996 1609 1698 673 4198 1310 1005 1378 762 486 Spaces Moved 13619 | 38 629 382 246 32 1352 608 620 383 98 457 1372 895 857 1043 338 1600 717 485 822 442 203 Core 5 | 3 2 . . . . . . . . . . . . . . . . . . . . Treads 13614 | 35 627 382 246 32 1352 608 620 383 98 457 1372 895 857 1043 338 1600 717 485 822 442 203 Legs . | . . . . . . . . . . . . . . . . . . . . . . Wheels . | . . . . . . . . . . . . . . . . . . . . . . Hover . | . . . . . . . . . . . . . . . . . . . . . . Flight . | . . . . . . . . . . . . . . . . . . . . . . Fastest Speed 50 | 50 100 240 240 240 158 243 243 242 242 243 160 160 160 160 160 160 160 160 160 160 160 Average Speed 185 | 151 179 240 240 240 179 244 243 243 242 244 215 160 160 160 160 160 160 160 160 160 160 Slowest Speed 320 | 160 240 240 240 240 247 247 243 247 242 245 320 160 160 160 160 240 160 160 160 160 160 Overloaded Moves . | . . . . . . . . . . . . . . . . . . . . . . Propulsion Burnouts . | . . . . . . . . . . . . . . . . . . . . . . Robots Hopped . | . . . . . . . . . . . . . . . . . . . . . . Cave-ins Triggered . | . . . . . . . . . . . . . . . . . . . . . . Exploration Rate (%) 58 | 4 79 43 60 15 89 16 67 60 68 50 38 99 98 85 66 33 93 64 91 56 4 Regions Visited 21 Branch Regions 15 Pre-discovered Areas 11 | . . 1 1 . . . 1 . 1 . . . 1 2 . . 1 . 2 1 . Known Exits Taken 5 | . . . . . . 1 . . . . 1 . . . . 1 1 . . 1 . Unknown Exits Taken 16 | 1 1 1 1 1 1 . 1 1 1 1 . 1 1 1 1 . . 1 1 . . Scrap Searched 30 | . . . . . . . 3 3 . 4 . 4 4 2 2 . 4 1 . 3 . Spaces Dug 172 | . . . . . 8 19 . 16 . 41 22 10 3 . . 34 7 6 . . 6 Terrain Destroyed 578 | . 34 20 . . 25 71 14 33 . 52 50 20 12 . 36 106 66 24 1 4 10 Melee . | . . . . . . . . . . . . . . . . . . . . . . Projectile 274 | . . . . . . 22 14 6 . 11 50 20 12 . 7 72 23 22 1 4 10 AOE 300 | . 34 20 . . 25 49 . 27 . 41 . . . . 29 32 43 . . . . Terrain Rammed . | . . . . . . . . . . . . . . . . . . . . . . Walls Destroyed . | . . . . . . . . . . . . . . . . . . . . . . Machines Disabled . | . . . . . . . . . . . . . . . . . . . . . . Actions | -11 -10 -10 -10 -9 -8 -7 -7 -7 -7 -6 -6 -6 -6 -6 -5 -5 -5 -5 -5 -4 -4 --------- Run | Scr Mat Min Exi Min Mat Fac Low Low Dat Pro Fac Low Low Zio Pro Fac Upp Upp War Pro Fac Total 18122 | 51 799 535 251 31 1726 882 743 407 104 605 1864 1411 1054 1074 426 2929 853 663 887 484 343 Wait 2722 | . 45 45 . . 75 149 72 2 . 74 308 455 157 3 25 977 84 110 3 26 112 Move 13598 | 37 628 381 245 31 1351 607 619 382 97 456 1371 894 856 1042 337 1599 716 484 821 441 203 Hop . | . . . . . . . . . . . . . . . . . . . . . . Pick Up 180 | 8 25 8 1 . 42 11 1 2 3 7 21 3 1 3 1 24 5 3 8 . 3 Fast Attach 166 | 4 15 1 . . 19 9 4 2 . 13 15 . 2 9 4 35 2 5 20 2 5 Attach 92 | 2 . 3 1 . 20 6 . 2 1 6 10 1 . 2 3 21 3 5 3 . 3 Detach 27 | . 1 . . . 1 2 . 1 . 2 2 . . 2 1 7 4 3 1 . . Swap 78 | . 9 5 . . 13 8 3 3 . 2 3 . . . 1 28 1 . 1 1 . Drop 247 | . 22 6 4 . 42 13 4 4 3 18 31 3 3 12 5 29 7 7 28 2 4 Fire 915 | . 49 81 . . 157 72 40 9 . 27 95 33 28 1 31 188 31 46 2 12 13 Melee . | . . . . . . . . . . . . . . . . . . . . . . Ram . | . . . . . . . . . . . . . . . . . . . . . . Kick . | . . . . . . . . . . . . . . . . . . . . . . Crush 50 | . 5 5 . . 6 5 . . . . 8 . . . . 21 . . . . . Escape Stasis . | . . . . . . . . . . . . . . . . . . . . . . Rewire 47 | . . . . . . . . . . . . 22 7 . 18 . . . . . . Trap . | . . . . . . . . . . . . . . . . . . . . . . Miscellaneous . | . . . . . . . . . . . . . . . . . . . . . . Route ------- -11/Scrapyard -10/Materials (discovered 3 exits: [*Mat x2] / *Min) -10/Mines -10/Exiles -9/Mines -8/Materials (discovered 3 exits: *Fac x3) -7/Factory (discovered 4 exits: *Fac / Sto / *Low x2) -7/Lower Caves -7/Lower Caves (discovered 2 exits: *Fac / *Dat) -7/Data Miner -6/Proximity Caves -6/Factory (discovered 2 exits: *Low x2) -6/Lower Caves -6/Lower Caves (discovered 2 exits: *Fac / [*Zio]) -6/Zion -5/Proximity Caves -5/Factory (discovered 2 exits: *Upp x2) -5/Upper Caves -5/Upper Caves (discovered 2 exits: *Fac / *War) -5/Warlord -4/Proximity Caves -4/Factory (discovered 3 exits: Upp x2 / Ext) History --------- Turn | Location | Event 42 | -11/Scrapyard | Discovered new exit (range 15) 73 | -11/Scrapyard | Entered Materials 314 | -10/Materials | Build established: Mutant 393 | -10/Materials | Discovered new exit (range 8) 577 | -10/Materials | Discovered new exit (range 7) 814 | -10/Materials | Discovered new exit (range 16) 1346 | -10/Materials | Repaired Lgt. Treads 1438 | -10/Materials | Entered Mines 1548 | -10/Mines | Excavation squad dispatched 1548 | -10/Mines | A large section of the Mines collapsed 1707 | -10/Mines | Joined a pair of Derelicts in attacking an 0b10 outpost 1798 | -10/Mines | Excavation squad dispatched 2048 | -10/Mines | Excavation squad dispatched 2126 | -10/Mines | Core integrity fell below 50% 2146 | -10/Mines | Learned Materials terminal intel 2298 | -10/Mines | Excavation squad dispatched 2299 | -10/Mines | Learned location of Storage (-7) 2502 | -10/Mines | Central database locked down 2548 | -10/Mines | Excavation squad dispatched 2622 | -10/Mines | Deemed a non-threat by the Exiles lab entrance 2622 | -10/Mines | Discovered new exit (range 5) 2632 | -10/Mines | Entered Exiles 2692 | -10/Exiles | Met 8R-AWN 2731 | -10/Exiles | Met EX-HEX 2827 | -10/Exiles | Met EX-DEC 2836 | -10/Exiles | Learned location of Zion (-6) 2889 | -10/Exiles | Met EX-BIN 2916 | -10/Exiles | Aligned with FarCom system 2918 | -10/Exiles | Given EX-Vault access code 2973 | -10/Exiles | Opened EX-Vault 2998 | -10/Exiles | Found Army-in-a-Box 3049 | -10/Exiles | Warned to stay clear of 0b10 Research branches 3200 | -10/Exiles | Discovered new exit (range 10) 3224 | -10/Exiles | Left Exiles lab with Army-in-a-Box 3224 | -10/Exiles | Entered Mines 3277 | -9/Mines | Discovered new exit (range 10) 3299 | -9/Mines | Entered Materials 3299 | -8/Materials | Evolved 4 slots: Propulsion x2, Utility x2 3300 | -8/Materials | Loaded intel: 12 terminal locations 3702 | -8/Materials | Discovered new exit (range 15) 3760 | -8/Materials | Lost 4 parts (2n1u1w) 4441 | -8/Materials | Build established: Scavenger-Mutant 4852 | -8/Materials | Discovered new exit (range 13) 5142 | -8/Materials | Found Powered Armor 5148 | -8/Materials | Found Powered Armor 5335 | -8/Materials | Found Powered Armor 5422 | -8/Materials | Core integrity fell below 50% 5440 | -8/Materials | Build established: Mutant 5543 | -8/Materials | Found Powered Armor 5964 | -8/Materials | Discovered new exit (range 16) 6351 | -8/Materials | Entered Factory 6351 | -7/Factory | Evolved 2 slots: Utility x2 6396 | -7/Factory | Discovered new exit (range 12) 6401 | -7/Factory | Identified exit to Storage 6401 | -7/Factory | Identified exit to Lower Caves 6636 | -7/Factory | Build established: Hacker-Mutant 7791 | -7/Factory | Repaired Arm. Treads 7831 | -7/Factory | Central database locked down 8103 | -7/Factory | Fabricated Hvy. Assault Cannon (x1) 8219 | -7/Factory | Entered Lower Caves 8260 | -7/Lower Caves | Learned location of Extension (-4) 8633 | -7/Lower Caves | Spotted B-75 Beast 8748 | -7/Lower Caves | Destroyed B-75 Beast 9292 | -7/Lower Caves | Encountered a Warlord checkpoint 9874 | -7/Lower Caves | Discovered new exit (range 15) 9889 | -7/Lower Caves | Learned Factory emergency access door positions 9908 | -7/Lower Caves | Entered another Lower Caves area 9916 | -7/Lower Caves | Discovered new exit (range 13) 9925 | -7/Lower Caves | Attracted the attention of an 0b10 checkpoint 10844 | -7/Lower Caves | Discovered new exit (range 11) 10878 | -7/Lower Caves | Entered Data Miner 10879 | -7/Data Miner | Discovered new exit (range 6) 10971 | -7/Data Miner | Met Data Miner 11014 | -7/Data Miner | Learned location of Section 7 (-2) 11053 | -7/Data Miner | Received God Mode back door access code from Data Miner 11119 | -7/Data Miner | Entered Proximity Caves 11180 | -6/Proximity Caves | Learned Factory emergency access door positions 11208 | -6/Proximity Caves | Attracted the attention of an 0b10 checkpoint 11209 | -6/Proximity Caves | Escorted by Enhanced Grunt 11419 | -6/Proximity Caves | Found Prototype Device 11419 | -6/Proximity Caves | Identified Exp. Thermal Shield 12121 | -6/Proximity Caves | Spotted B-75 Beast 12380 | -6/Proximity Caves | Discovered new exit (range 5) 12418 | -6/Proximity Caves | Entered Factory 12418 | -6/Factory | Evolved 2 slots: Utility x2 13325 | -6/Factory | Repaired Hvy. Assault Cannon 13560 | -6/Factory | Fabricated Adv. Transmission Jammer? 14083 | -6/Factory | Discovered new exit (range 12) 14528 | -6/Factory | Fabricated Hvy. Treads? 14584 | -6/Factory | Incoming investigation squad redirected 14713 | -6/Factory | Incoming investigation squad redirected 14723 | -6/Factory | Central database locked down 14723 | -6/Factory | Identified exit to Lower Caves 14990 | -6/Factory | Incoming investigation squad redirected 15604 | -6/Factory | Incoming investigation squad redirected 15664 | -6/Factory | Fabricated Combat Drone Bay? 16005 | -6/Factory | Entered Lower Caves 16005 | -6/Lower Caves | Accompanied by 1 ally 16592 | -6/Lower Caves | Attracted the attention of an 0b10 outpost 16630 | -6/Lower Caves | Attracted the attention of an 0b10 checkpoint 16829 | -6/Lower Caves | Learned 8 Factory zone layouts 16835 | -6/Lower Caves | Discovered new exit (range 90) 18001 | -6/Lower Caves | Entered another Lower Caves area 18001 | -6/Lower Caves | Accompanied by 2 allies 18068 | -6/Lower Caves | Discovered new exit (range 16) 18139 | -6/Lower Caves | Encountered a Warlord checkpoint 18391 | -6/Lower Caves | Destroyed B-75 Beast 18589 | -6/Lower Caves | Discovered new exit (range 62) 18666 | -6/Lower Caves | Attracted the attention of an 0b10 outpost 19364 | -6/Lower Caves | Learned Factory security intel 19610 | -6/Lower Caves | Entered Zion 19610 | -6/Zion | Accompanied by 1 ally 19808 | -6/Zion | Discovered new exit (range 15) 20031 | -6/Zion | Found Prototype Special Weapon 20032 | -6/Zion | Identified RU-N14's Throwing Claymores 20088 | -6/Zion | Given A8's code to call for help 20260 | -6/Zion | Found Prototype Device 20260 | -6/Zion | Identified Mobile Refinery Mk. CCLXVII 20387 | -6/Zion | Found CR-A16's Pointy Stick 20424 | -6/Zion | Rebuked by Imprinter 20651 | -6/Zion | Gained Derelict followers 20680 | -6/Zion | Learned Factory terminal intel 20931 | -6/Zion | Learned location of Warlord (-5) 21138 | -6/Zion | Found RU-N14's Throwing Claymores 21308 | -6/Zion | Entered Proximity Caves 21308 | -5/Proximity Caves | Accompanied by 3 allies 21358 | -5/Proximity Caves | Attracted the attention of an 0b10 outpost 21390 | -5/Proximity Caves | Learned Factory stockpile data 21546 | -5/Proximity Caves | Learned Factory stockpile data 21926 | -5/Proximity Caves | Discovered new exit (range 7) 21981 | -5/Proximity Caves | Entered Factory 21981 | -5/Factory | Evolved 2 slots: Utility x2 21982 | -5/Factory | Identified exit to Upper Caves 21986 | -5/Factory | Loaded intel: 26 terminal locations 22340 | -5/Factory | Build established: Wizard-Mutant 22689 | -5/Factory | Repaired Hvy. Treads 22709 | -5/Factory | Repaired Hvy. Assault Cannon 22737 | -5/Factory | Repaired Hvy. Treads 22761 | -5/Factory | Repaired Med. Reactive Plating 22816 | -5/Factory | Repaired Exp. Thermal Shield 22839 | -5/Factory | Repaired Hvy. Rocket Launcher 22865 | -5/Factory | Repaired Imp. Medium Armor Plating 22976 | -5/Factory | Fabricated Exp. Utility Shielding? 23086 | -5/Factory | Fabricated Adv. Hacking Suite (x1) 23361 | -5/Factory | Fabricated Adv. Hacking Suite? 23770 | -5/Factory | Fabricated Tri-rail Accelerator? 23932 | -5/Factory | Fabricated Hyp. Coil Gun (x2) 23983 | -5/Factory | Fabricated Combat Drone Bay (x1) 24023 | -5/Factory | System corruption reached 10% 24263 | -5/Factory | Central database locked down 24318 | -5/Factory | Repaired Hvy. Treads 24337 | -5/Factory | Repaired Hvy. Treads 24365 | -5/Factory | Repaired Exp. Utility Shielding 24768 | -5/Factory | Repaired Hyp. Coil Gun 24792 | -5/Factory | Repaired Med. Reactive Plating 25655 | -5/Factory | Repaired Hvy. Treads 25685 | -5/Factory | Repaired Hvy. Treads 25837 | -5/Factory | Repaired Tri-rail Accelerator 25861 | -5/Factory | Repaired Med. Reactive Plating 25890 | -5/Factory | Repaired Hyp. Coil Gun 26179 | -5/Factory | Entered Upper Caves 26479 | -5/Upper Caves | Destroyed 10 combat bots 26511 | -5/Upper Caves | Learned location of Armory (-4) 26511 | -5/Upper Caves | Identified exit to Upper Caves 26511 | -5/Upper Caves | Learned Extension trap positions 26511 | -5/Upper Caves | Learned Armory security intel 26511 | -5/Upper Caves | Learned Factory garrison access intel 26599 | -5/Upper Caves | Learned Factory terminal intel 26929 | -5/Upper Caves | Encountered a Warlord checkpoint 27093 | -5/Upper Caves | Learned Factory security intel 27489 | -5/Upper Caves | Entered another Upper Caves area 27490 | -5/Upper Caves | Identified exit to Factory 27724 | -5/Upper Caves | Encountered a Warlord checkpoint 27837 | -5/Upper Caves | Spotted B-75 Beast 27871 | -5/Upper Caves | Destroyed B-75 Beast 28290 | -5/Upper Caves | Attracted the attention of an 0b10 checkpoint 28421 | -5/Upper Caves | Discovered new exit (range 15) 28494 | -5/Upper Caves | Entered Warlord 28552 | -5/Warlord | System corruption cleaned by Quarantine Array 28940 | -5/Warlord | Learned 4 Research zone layouts 28942 | -5/Warlord | Learned Research security intel 28942 | -5/Warlord | Learned Factory repair station intel 28942 | -5/Warlord | Learned Factory garrison access intel 28942 | -5/Warlord | Learned Research terminal intel 28945 | -5/Warlord | Learned location of Quarantine (-3) 28945 | -5/Warlord | Learned Quarantine trap positions 28995 | -5/Warlord | Visited the Vortex Lab 29004 | -5/Warlord | Warlord's base attacked by MAIN.C 29008 | -5/Warlord | Found Prototype Energy Cannon 29008 | -5/Warlord | Identified Vortex Cannon 29011 | -5/Warlord | Found Prototype Energy Gun 29011 | -5/Warlord | Identified Vortex Shotgun 29020 | -5/Warlord | Found Prototype Energy Gun 29020 | -5/Warlord | Identified Vortex Rifle 29034 | -5/Warlord | Found Vortex Shotgun 29053 | -5/Warlord | Found Vortex Cannon 29064 | -5/Warlord | Found Vortex Rifle 29354 | -5/Warlord | Warlord forces counterattacked 29477 | -5/Warlord | Met Warlord 29514 | -5/Warlord | Found Prototype Processor 29514 | -5/Warlord | Identified Exp. Core Analyzer 29526 | -5/Warlord | Found Prototype Device 29526 | -5/Warlord | Identified Exp. Phase Shifter 29544 | -5/Warlord | Found Prototype Reactor 29679 | -5/Warlord | Warlord base infiltrated, sounded retreat 29736 | -5/Warlord | Found Prototype Ballistic Cannon 29736 | -5/Warlord | Identified Hvy. Autocannon 29750 | -5/Warlord | Found Prototype Device 29750 | -5/Warlord | Identified Exp. Shock Absorption System 29819 | -5/Warlord | Spotted Executioner 29828 | -5/Warlord | Destroyed Executioner 29853 | -5/Warlord | Discovered new exit (range 14) 29872 | -5/Warlord | Entered Proximity Caves 29954 | -4/Proximity Caves | Attracted the attention of an 0b10 checkpoint 30100 | -4/Proximity Caves | Learned Research terminal intel 30634 | -4/Proximity Caves | Entered Factory 30634 | -4/Factory | Evolved 2 slots: Power x1, Utility x1 30635 | -4/Factory | Identified exit to Upper Caves 30635 | -4/Factory | Identified exit to Extension 30638 | -4/Factory | Loaded intel: 28 terminal locations 30639 | -4/Factory | Loaded intel: 6 repair station locations 30640 | -4/Factory | Loaded intel: 4 garrison access locations 30650 | -4/Factory | Identified Vortex Chain Reactor 30814 | -4/Factory | Repaired Exp. Utility Shielding 30843 | -4/Factory | Repaired Hvy. Treads 31120 | -4/Factory | Self-destructed Last Messages --------------- >>Alert(Check) Current Alert Level: Low Security >>Trojan(Botnet) Trojan loaded successfully. Testing... Terminal linked with 0 systems. Awaiting botnet instructions. >>Trojan(Operators) Trojan loaded successfully. Testing... Operator tracking enabled and active. >>Prototypes Downloading prototype IDs... Plasma Lance Imp. Energy Mantle >>Schematic(Lrn. Terrain Scanner) Downloading schematic... Lrn. Terrain Scanner Rating: 7 Schematic downloaded. Map ----- +----------------------------------------------------+ | ?????????????????????????????????????????????????? | | ?????????????????????????????????????????????????? | | ?????????????????????????????????????????????????? | | ?????????????????????????????????????????????????? | | ?????????????????????????????????????????????????? | | ?????????????T???????????????????????????????????? | | ?????????????????????????????????????????????????? | | ?????????????????????????????????????????????????? | | ?????????????????????????????????????????????????? | | ?????????????????????????????????????????????????? | | ?????????????????????????????????????????????????? | | ?????????????????????????????????????????????????? | | ?????????????????????????????????????????????????? | | ?????????????????????????????????????????????????? | | ?????????????????????????????????????????????????? | | ?????????????????????????????????????????????????? | | ???????????????????""????????????????????????????? | | ???????????????????""????????????????????????????? | | ???????????????????T"?###????????????????????????? | | ???????????????????""?+ g???????????????????????? | | ???????????????????""?# #????????????????????????? | | ??????????????????????# #????????????????????????? | | ??????????????????????+ #????????????????????????? | | ??????????????????????# ########?????????????????? | | ????????????########+## # #?????????????????? | | ????????????+ u/@T #?????????????????? | | ?????????????#### # ! #?????????????????? | | ????????????????# # #?????????????? | | ????????????????# + #?????????????? | | ????????????????# #### #?????????????# | | ????????????##### #??########?????????????# | | ????????????+ #???????????????????????# | | ????????????#####+## #???????????????????????# | | ???????????????????# #???????????????????????# | | ???????????????????# #??????????############## | | ???????????????????# #??????????# # | | ???????????????????# #??????????# # | | ???????????????????# #??????????# " !!! " " # | | ???????????????????# ############ " !!= " " # | | ???????????????????# # ## " !! " " # | | ???????????????????# # ## " " " + | | ???????????????????#|# * ## " * " " # | | ?????????########### # ## " " " + | | ????# *+ ## " ! " " ###+# | | ?????????## ######## # ## " " " ## | | ??????????????????## # ## " " " ## | | ??????????????????#" " "" ## | | ??????????????????## #####+#####"############## | | ???????????????????# #???# #??# ##????# ??# | | ?????????????????### ###?# #?# #??????# """ # | +----------------------------------------------------+ Best States ------------- Heat Dissipation 67 Coolant Potential 50 Energy Generation 35 Energy Capacity 540 Matter Stores 300 Matter Capacity 300 Sight Range 16 Terrain Scan Density 10 Jamming Range 16 Armor Coverage 600 Resistance: KI 30 Resistance: TH 30 Utility Shielding 90 Evasion (%) 40 Targeting Accuracy 10 Core Analysis 8 Armor Integrity Analysis 30 Recoil Reduction 4 Kinecelleration 30 Offensive Hacking 62 Defensive Hacking 21 Authchip Count 6 Item Schematics ----------------- Hacking Suite | -8/Materials | Scanalyzed System Shield | -8/Materials | Scanalyzed Lgt. Treads | -8/Materials | Scanalyzed Adv. Plasma Cannon | -7/Factory | Hacked Hvy. Assault Cannon | -7/Factory | Hacked Combat Drone Bay | -7/Data Miner | Free Lgt. Regenerative Plating | -7/Data Miner | Free Biomechanical Wings | -7/Data Miner | Free Thermal Defense Suite | -7/Data Miner | Free Antimatter Cannon | -7/Data Miner | Free Linear Gravjet | -7/Data Miner | Free Lyr. Heavy Armor Plating | -7/Data Miner | Free Lance | -7/Data Miner | Free Adv. Shield Generator | -7/Data Miner | Free Imp. Focal Shield | -7/Data Miner | Free Quantum Capacitor | -7/Data Miner | Free Adv. Sensor Array | -7/Data Miner | Free Exp. Thermal Shield | -6/Factory | Scanalyzed Hvy. Treads | -6/Factory | Hacked Adv. Coolant Injector | -6/Factory | Hacked Matter Compressor | -6/Factory | Hacked Cld. Plasma Cannon | -6/Factory | Scanalyzed Hvy. Rocket Launcher | -6/Factory | Scanalyzed Graphene Brace | -6/Factory | Scanalyzed Antimatter Reactor | -6/Factory | Scanalyzed Hcp. Matter Pod | -6/Factory | Scanalyzed Hpw. Tractor Beam | -6/Factory | Scanalyzed Stasis Canceller | -6/Zion | Archive Imp. Kinecellerator | -6/Zion | Archive Imp. Core Shielding | -6/Zion | Archive Arm. Medium Treads | -6/Zion | Archive Falx | -6/Zion | Archive Point Defense System | -6/Zion | Archive Lyr. Medium Armor Plating | -6/Zion | Archive Impulse Thruster | -6/Zion | Archive Adv. Hardlight Generator | -6/Zion | Archive Nuclear Pulse Thruster | -6/Zion | Archive 0b10 Decoder Chip [Skirmisher] | -6/Zion | Archive Imp. Thermal Shield | -6/Zion | Archive Proton Cannon | -6/Zion | Archive Adv. Hacking Suite | -5/Factory | Hacked Exp. Utility Shielding | -5/Factory | Hacked Tri-rail Accelerator | -5/Factory | Hacked Hyp. Coil Gun | -5/Factory | Hacked Lrn. Terrain Scanner | -4/Factory | Hacked Robot Schematics ------------------ G-47 Trooper | -7/Data Miner | Free M-22 Extractor | -7/Data Miner | Free O-24 Administrator | -7/Data Miner | Free B-48 Gladiator | -7/Data Miner | Free X-62 Marksman | -7/Data Miner | Free B-60 Warrior | -7/Data Miner | Free L-41 Fighter | -7/Data Miner | Free Y-54 Guardian | -6/Zion | Archive G-50 Soldier | -6/Zion | Archive H-88 Terminator | -6/Zion | Archive Fabricated ------------ Hvy. Assault Cannon | x1 | -7/Factory | Authchip Adv. Transmission Jammer | x1 | -6/Factory | Preloaded Hvy. Treads | x2 | -6/Factory | Authchip Combat Drone Bay | x1 | -6/Factory Exp. Utility Shielding | x1 | -5/Factory | Authchip Adv. Hacking Suite | x1 | -5/Factory | Authchip Adv. Hacking Suite | x1 | -5/Factory | Authchip Tri-rail Accelerator | x1 | -5/Factory | Authchip Hyp. Coil Gun | x2 | -5/Factory | Authchip Combat Drone Bay | x1 | -5/Factory Alien Tech Used ----------------- None Achievements -------------- None Challenges ------------ None Game ------ Seed ReactionGrapheneSystem Manual? 0 Play Time 03:16:28 Cumulative 432.7 hours Start 2022.05.22 @ 01:56:18 End 2022.05.24 @ 23:01:01 Sessions 25 Manual Loads 0 Difficulty Rogue Special Mode None Game No. 416 Rogue 416 Adventurer 0 Explorer 0 Win Type - Total 21 Types 13/2/3/2/0/0/0/1/0 Lore% 92 Gallery% 91 Achievement% 76 Wizard Run 0 Options --------- ASCII 0 Keyboard 0 Movement Arrows Keybinds 0 Fullscreen 1 Font 18/Smallcaps Map View 76x50 Tactical HUD 1 Map Filters NONE Filters NONE Steam 1 RUN: 482b102b-f5b5-4dc3-b7fb-768d0cf01d31